fUSD/lending_fUSD_20251101
["ID","MTS","AMOUNT","RATE_DAILY","PERIOD"]
[392837825,1762026801647,500.0,0.00031506,120]
[392837826,1762026818157,654.0,0.00014613,2]
[392837827,1762026825217,200.0,0.00014077,2]
[392837828,1762026841549,300.0,0.00014799,2]
[392837829,1762026852475,2671.85405387,0.00014056,2]
[392837830,1762026852498,1685.50594613,0.00014056,2]
[392837831,1762026880498,150.0,0.00014056,2]
[392837832,1762026901375,300.0,0.00014799,2]
[392837833,1762026901474,1200.0,0.00014799,2]
[392837836,1762026961189,287.0,0.00014799,2]
[392837837,1762026969543,500.0,0.00031232,120]
[392837838,1762026969774,500.0,0.00031506,120]
[392837845,1762027057025,500.0,0.00031232,120]
[392837846,1762027057272,500.0,0.00031506,120]
[392837850,1762027155810,184.4,0.00013699,2]
[392837851,1762027156027,184.4,0.00014047,2]
[392837852,1762027156235,184.4,0.00014396,2]
[392837853,1762027156441,184.4,0.00014744,2]
[392837856,1762027201196,300.0,0.00014799,2]
[392837857,1762027201233,1200.0,0.00014799,2]
[392837858,1762027201798,300.0,0.00014799,2]
[392837859,1762027274914,500.0,0.00031232,120]
[392837860,1762027275144,500.0,0.00031506,120]
[392837863,1762027342718,158.184821,0.00015,5]
[392837864,1762027343035,158.184821,0.00015,5]
[392837865,1762027343329,158.184821,0.00015,5]
[392837866,1762027343658,158.184821,0.00015,5]
[392837867,1762027344111,158.184821,0.00015,5]
[392837868,1762027345929,158.184821,0.00015,7]
[392837869,1762027346234,158.184821,0.00015,7]
[392837870,1762027346589,158.184821,0.00015,7]
[392837871,1762027346865,158.184821,0.00015,7]
[392837872,1762027347156,158.184821,0.00015,7]
[392837873,1762027352624,369.097917,0.00015,5]
[392837874,1762027353013,152.215488,0.00015,5]
[392837875,1762027353086,369.097917,0.00015,5]
[392837876,1762027353175,152.215488,0.00015,7]
[392837877,1762027353267,369.097917,0.00015,5]
[392837878,1762027353564,369.097917,0.00015,5]
[392837879,1762027353860,369.097917,0.00015,5]
[392837880,1762027354175,369.097917,0.00015,7]
[392837881,1762027354481,369.097917,0.00015,7]
[392837882,1762027354834,369.097917,0.00015,7]
[392837883,1762027355181,369.097917,0.00015,7]
[392837884,1762027355449,369.097917,0.00015,7]
[392837885,1762027367273,159.789826,0.00015,5]
[392837888,1762027381673,150.0,0.00014799,2]
[392837889,1762027383436,428.585944,0.00015,5]
[392837890,1762027384050,428.585944,0.00015,5]
[392837891,1762027384358,428.585944,0.00015,5]
[392837892,1762027384729,428.585944,0.00015,5]
[392837893,1762027386264,428.585944,0.00015,5]
[392837894,1762027386601,428.585944,0.00015,7]
[392837895,1762027386877,428.585944,0.00015,7]
[392837896,1762027387209,428.585944,0.00015,7]
[392837897,1762027387466,428.585944,0.00015,7]
[392837898,1762027387864,428.585944,0.00015,7]
[392837899,1762027501564,1200.0,0.00014799,2]
[392837902,1762027506890,150.0,0.00013488,2]
[392837903,1762027506967,150.0,0.00013862,2]
[392837904,1762027507269,150.0,0.00014237,2]
[392837905,1762027507305,150.0,0.00014612,2]
[392837906,1762027507501,150.0,0.00013488,2]
[392837907,1762027507571,150.0,0.00013987,2]
[392837908,1762027507645,150.0,0.00014487,2]
[392837909,1762027507793,150.0,0.00013488,2]
[392837910,1762027507864,150.0,0.00013862,2]
[392837911,1762027507934,150.0,0.00014237,2]
[392837912,1762027508011,150.0,0.00014612,2]
[392837913,1762027510928,150.0,0.00013488,2]
[392837914,1762027510963,150.0,0.00013862,2]
[392837915,1762027511032,150.0,0.00014237,2]
[392837916,1762027511104,150.0,0.00014612,2]
[392837917,1762027513567,150.0,0.00013488,2]
[392837918,1762027513633,89.90405387,0.00013987,2]
[392837919,1762027513660,60.09594613,0.00013987,2]
[392837920,1762027513704,150.0,0.00014487,2]
[392837921,1762027513847,157.55216431,0.00013488,2]
[392837922,1762027516016,150.0,0.00013488,2]
[392837923,1762027517634,167.32376632,0.00013488,2]
[392837924,1762027518404,500.0,0.00031232,120]
[392837925,1762027518645,500.0,0.00031506,120]
[392837926,1762027523266,150.0,0.00013488,2]
[392837927,1762027523337,150.0,0.00014237,2]
[392837928,1762027523474,150.0,0.00013488,2]
[392837929,1762027523620,157.00606553,0.00013488,2]
[392837930,1762027523700,151.84652793,0.00013488,2]
[392837931,1762027528557,153.56017478,0.00013488,2]
[392837932,1762027529882,150.0,0.00013488,2]
[392837933,1762027529926,150.0,0.00013987,2]
[392837934,1762027530254,150.0,0.00014487,2]
[392837935,1762027561667,150.0,0.00014799,2]
[392837936,1762027611610,1000.0,0.000147,2]
[392837941,1762027641188,1000.0,0.00013699,2]
[392837943,1762027676124,1266.26,0.00014001,2]
[392837948,1762027742402,150.0,0.00014799,2]
[392837949,1762027757840,500.0,0.00031232,120]
[392837950,1762027758087,500.0,0.00031506,120]
[392837954,1762027801162,1200.0,0.00014799,2]
[392837958,1762027832200,-4046.38805896,0.000148,2]
[392837959,1762027832358,-302.61183806,0.000148,2]
[392837960,1762027832370,-4578.66172358,0.000148,2]
[392837961,1762027832380,-10370.26298952,0.000148,2]
[392837962,1762027832389,-10000.01,0.000148,2]
[392837963,1762027832398,-1000.0,0.000148,2]
[392837964,1762027832407,-10000.01,0.000148,2]
[392837965,1762027832416,-195.0,0.00014806,2]
[392837966,1762027832426,-300.0,0.00014812,2]
[392837967,1762027832435,-3769.62366202,0.00014825,2]
[392837968,1762027832445,-261.40211524,0.00014825,2]
[392837969,1762027832455,-300.0,0.00014849,2]
[392837970,1762027832464,-175.64744,0.0001485,2]
[392837971,1762027832474,-161.84796,0.0001485,2]
[392837972,1762027832483,-200.0,0.0001488,2]
[392837973,1762027832492,-239.84119403,0.00014891,2]
[392837974,1762027832501,-500.0,0.00014899,2]
[392837975,1762027832510,-500.0,0.00014899,2]
[392837976,1762027832519,-500.0,0.00014899,2]
[392837977,1762027832528,-500.0,0.00014899,2]
[392837978,1762027832537,-500.0,0.00014899,2]
[392837979,1762027832546,-500.0,0.00014899,2]
[392837980,1762027832555,-500.0,0.00014899,2]
[392837981,1762027832564,-500.0,0.00014899,2]
[392837982,1762027832573,-500.0,0.00014899,2]
[392837983,1762027832582,-500.0,0.00014899,2]
[392837984,1762027832591,-500.0,0.00014899,2]
[392837985,1762027832600,-500.0,0.00014899,2]
[392837986,1762027832610,-500.0,0.00014899,2]
[392837987,1762027832619,-500.0,0.00014899,2]
[392837988,1762027832628,-522.24097774,0.00014899,2]
[392837990,1762027832638,-500.0,0.00014899,2]
[392837992,1762027832647,-500.0,0.00014899,2]
[392837994,1762027832656,-500.0,0.00014899,2]
[392837996,1762027832665,-500.0,0.00014899,2]
[392837998,1762027832675,-500.0,0.00014899,2]
[392838000,1762027832684,-339.42258216,0.000149,2]
[392838003,1762027832693,-992.69218732,0.000149,2]
[392838008,1762027832705,-1149.40805194,0.000149,2]
[392838011,1762027832716,-704.08943889,0.000149,2]
[392838020,1762027832758,-500.0,0.00014899,2]
[392838023,1762027832767,-57.49214128,0.000149,2]
[392838026,1762027832778,-368.50572548,0.000149,2]
[392838034,1762027832810,-469.94203951,0.00014899,2]
[392838039,1762027832845,-30.05796049,0.00014899,2]
[392838041,1762027832854,-500.0,0.00014899,2]
[392838043,1762027832863,-1035.58267065,0.000149,2]
[392838045,1762027832874,-282.70972726,0.000149,2]
[392838151,1762027836287,250.0,0.00013998,2]
[392838153,1762027838149,-63.95605718,0.000149,2]
[392838154,1762027838159,-1039.56205216,0.000149,2]
[392838155,1762027838358,-2445.75564784,0.000149,2]
[392838156,1762027838368,-616.11772778,0.000149,2]
[392838157,1762027838377,-11814.37008127,0.000149,2]
[392838161,1762027840232,-1867.46679998,0.000149,2]
[392838162,1762027840338,-10655.0,0.000149,2]
[392838163,1762027840496,-8743.11150502,0.000149,2]
[392838164,1762027840506,-14130.76294066,0.000149,2]
[392838165,1762027840515,-1000.0,0.000149,2]
[392838166,1762027840524,-193.73579102,0.000149,2]
[392838167,1762027840533,-4422.65409782,0.000149,2]
[392838168,1762027840542,-159.445454,0.000149,2]
[392838169,1762027840551,-173.22908981,0.000149,2]
[392838170,1762027840560,-527.06058364,0.000149,2]
[392838171,1762027840569,-313.16,0.00014905,2]
[392838172,1762027840578,-349.09,0.00014905,2]
[392838173,1762027840587,-1451.6,0.00014936,2]
[392838174,1762027840596,-573.0,0.00014937,2]
[392838175,1762027840605,-820.0,0.00014937,2]
[392838181,1762027840821,-3420.0,0.00014937,2]
[392838182,1762027840831,-607.0,0.00014937,2]
[392838183,1762027840840,-1314.0,0.00014937,2]
[392838184,1762027840849,-1594.0,0.00014937,2]
[392838185,1762027840864,-819.0,0.00014937,2]
[392838186,1762027840873,-1272.0,0.00014937,2]
[392838187,1762027840883,-559.0,0.00014937,2]
[392838188,1762027840891,-1177.767,0.00014937,2]
[392838189,1762027840900,-2188.503,0.00014937,2]
[392838190,1762027840909,-6468.0,0.00014937,2]
[392838191,1762027840918,-6652.0,0.00014937,2]
[392838192,1762027840927,-8984.35033232,0.0001494,2]
[392838193,1762027840936,-150.0,0.00014955,2]
[392838194,1762027840945,-150.0,0.00014955,2]
[392838195,1762027840954,-150.0,0.00014955,2]
[392838196,1762027840962,-150.0,0.00014955,2]
[392838197,1762027840971,-150.0,0.00014955,2]
[392838198,1762027840980,-150.0,0.00014955,2]
[392838199,1762027840989,-500.0,0.00014959,2]
[392838200,1762027840998,-500.0,0.00014973,2]
[392838201,1762027841007,-308.08496528,0.00014973,2]
[392838202,1762027841019,-500.0,0.00014973,2]
[392838203,1762027841033,-500.0,0.00014973,2]
[392838204,1762027841044,-500.0,0.00014973,2]
[392838205,1762027841054,-500.0,0.00014973,2]
[392838206,1762027841063,-577.75360908,0.00014973,2]
[392838207,1762027841073,-500.0,0.00014973,2]
[392838208,1762027841082,-200.0,0.00014973,2]
[392838209,1762027841091,-500.0,0.00014973,2]
[392838210,1762027841100,-150.0,0.00014973,2]
[392838211,1762027841110,-150.0,0.00014973,2]
[392838212,1762027841120,-175.64745,0.0001498,2]
[392838213,1762027841130,-223.62383005,0.00014986,2]
[392838214,1762027841141,-179.20538015,0.00014986,2]
[392838215,1762027841151,-163.84395022,0.00014986,2]
[392838216,1762027841162,-165.24468516,0.00014986,2]
[392838217,1762027841172,-165.17037963,0.00014986,2]
[392838218,1762027841182,-155.3590467,0.00014986,2]
[392838219,1762027841191,-2200.0,0.00014986,2]
[392838220,1762027841202,-286.46127766,0.00014986,2]
[392838221,1762027841211,-172.73384628,0.00014986,2]
[392838222,1762027841220,-216.14335398,0.00014986,2]
[392838223,1762027841229,-500.0,0.0001499,2]
[392838224,1762027841238,-620.0,0.00014991,2]
[392838225,1762027841247,-496.47127164,0.00014991,2]
[392838226,1762027841256,-209.40437684,0.00014991,2]
[392838227,1762027841266,-322.6107,0.00014991,2]
[392838228,1762027841275,-500.0,0.00014999,2]
[392838229,1762027841284,-198.50611039,0.00014999,2]
[392838230,1762027841292,-633.99924846,0.00014999,2]
[392838231,1762027841301,-150.0,0.00014999,2]
[392838232,1762027841310,-155.0,0.00014999,2]
[392838233,1762027841320,-1000.0,0.00014999,2]
[392838234,1762027841329,-713.42747159,0.00014999,2]
[392838235,1762027841338,-2304.0,0.00015,2]
[392838236,1762027841347,-450752.16717251,0.00015,2]
[392838237,1762027841356,-150.0,0.00015,2]
[392838238,1762027841366,-2718.83245796,0.00015,2]
[392838239,1762027841374,-150.0,0.00015,2]
[392838240,1762027841383,-1430.17743017,0.00015,2]
[392838241,1762027841392,-150.0,0.00015,2]
[392838242,1762027841401,-3951.55520388,0.00015,2]
[392838243,1762027841410,-150.0,0.00015,2]
[392838244,1762027841419,-2357.40875783,0.00015,2]
[392838245,1762027841428,-253.60208835,0.00015,2]
[392838246,1762027841437,-1620579.16038183,0.00015,2]
[392838247,1762027841445,-134448.27500262,0.00015,2]
[392838248,1762027841454,-31216.71308452,0.00015,2]
[392838249,1762027841463,-1147513.64202463,0.00015,2]
[392838250,1762027841475,-80501.10509674,0.00015,2]
[392838251,1762027841486,-2555.66780378,0.00015,2]
[392838252,1762027843217,-1259.49402096,0.000148,2]
[392838253,1762027843227,-8021.47874284,0.00015,2]
[392838254,1762027843375,-1535.79198665,0.00015,2]
[392838255,1762027843386,-1749.93748,0.00015,2]
[392838256,1762027843398,-1068.6,0.00015,2]
[392838280,1762027846555,-155.33383012,0.000149,2]
[392838281,1762027846565,-483.88997699,0.00014937,2]
[392838284,1762027852440,281.78855864,0.00031507,120]
[392838285,1762027853089,654.0,0.00013,6]
[392838286,1762027893981,500.0,0.00031232,120]
[392838287,1762027894249,500.0,0.00031506,120]
[392838288,1762027895587,1008.77348594,0.00013,20]
[392838289,1762027914422,1425.0,0.00014762,2]
[392838290,1762027922310,1000.0,0.00014782,2]
[392838291,1762027922427,511.365355,0.00014744,2]
[392838292,1762027922449,913.634645,0.00014744,2]
[392838293,1762027922496,1425.0,0.00014764,2]
[392838294,1762027936090,221.53471527,0.0001471,2]
[392838295,1762027970913,200.0,0.00014017,2]
[392838296,1762028001443,561.83,0.00014028,2]
[392838297,1762028008095,543.43116087,0.00031232,120]
[392838298,1762028027193,999.0,0.00014013,3]
[392838299,1762028043263,1000.0,0.00014012,2]
[392838300,1762028077808,180.0,0.00014758,2]
[392838301,1762028134537,5498.01063973,0.00014002,2]
[392838302,1762028134560,437.72936027,0.00014002,2]
[392838303,1762028138425,4315.36,0.00014002,2]
[392838304,1762028367555,1781.24,7e-05,2]
[392838305,1762028367751,1781.24,7.369e-05,2]
[392838306,1762028368006,1684.44063973,7.737e-05,2]
[392838307,1762028368033,96.79936027,7.737e-05,2]
[392838308,1762028368193,1781.24,8.106e-05,2]
[392838309,1762028368402,1781.24,8.474e-05,2]
[392838310,1762028368619,1781.24,8.843e-05,2]
[392838311,1762028368816,1781.24,9.211e-05,2]
[392838312,1762028369020,1781.24,9.579e-05,2]
[392838313,1762028369385,997.01063973,9.948e-05,2]
[392838314,1762028369412,784.22936027,9.948e-05,2]
[392838315,1762028369800,1781.24,0.00010316,2]
[392838316,1762028370006,1781.24,0.00010685,2]
[392838317,1762028370235,1781.24,0.00011053,2]
[392838318,1762028370468,1781.24,0.00011422,2]
[392838319,1762028370672,1781.24,0.0001179,2]
[392838320,1762028370899,309.58063973,0.00012158,2]
[392838321,1762028370925,1471.65936027,0.00012158,2]
[392838322,1762028371097,1781.24,0.00012527,2]
[392838323,1762028371512,1781.24,0.00012895,2]
[392838324,1762028371715,1781.24,0.00013264,2]
[392838325,1762028371917,1781.24,0.00013632,2]
[392838326,1762028372141,1403.39063973,0.00014001,2]
[392838327,1762028372174,377.84936027,0.00014001,2]
[392838329,1762028383766,220.46289558,0.00013931,2]
[392838330,1762028426236,168.0,0.00014696,2]
[392838334,1762028553829,1425.0,0.00014737,2]
[392838335,1762028553943,1425.0,0.00014783,2]
[392838336,1762028709714,179.20538015,0.00014375,2]
[392838337,1762028709778,223.62383005,0.00014375,2]
[392838338,1762028709842,286.46127766,0.00014375,2]
[392838339,1762028716688,165.24468515,0.00014375,2]
[392838340,1762028716772,216.14335398,0.00014375,2]
[392838341,1762028716828,172.73384628,0.00014375,2]
[392838342,1762028718823,718.70852801,9e-05,2]
[392838343,1762028723711,155.35904671,0.00014375,2]
[392838344,1762028730312,165.17037963,0.00014375,2]
[392838346,1762028730629,163.84395022,0.00014375,2]
[392838347,1762028781544,500.0,0.00031232,120]
[392838348,1762028781776,500.0,0.00031506,120]
[392838349,1762028848791,500.0,0.00013913,2]
[392838351,1762028916593,1000.0,0.000147,2]
[392838353,1762028919603,200.621548,0.00031,120]
[392838354,1762028977514,208.66097555,0.00014758,2]
[392838357,1762029015259,168.0,0.00014435,2]
[392838358,1762029025083,168.0,0.00014377,2]
[392838367,1762029031334,-1013.0,0.000148,2]
[392838369,1762029031343,-168.0,0.0001482,2]
[392838370,1762029031353,-300.0,0.00014823,2]
[392838371,1762029031362,-1425.0,0.00014825,2]
[392838372,1762029031373,-1000.0,0.00014826,2]
[392838373,1762029031382,-1425.0,0.0001483,2]
[392838374,1762029031392,-1000.0,0.00014834,2]
[392838375,1762029031401,-175.64744,0.0001485,2]
[392838376,1762029031411,-175.64745,0.0001485,2]
[392838377,1762029031420,-161.84797,0.0001485,2]
[392838378,1762029031429,-1200.0,0.00014854,2]
[392838379,1762029031439,-1425.0,0.00014855,2]
[392838380,1762029031448,-300.0,0.00014855,2]
[392838381,1762029031458,-1200.0,0.00014856,2]
[392838382,1762029031467,-402.5052,0.00014858,2]
[392838383,1762029031476,-182.0,0.00014866,2]
[392838384,1762029031485,-1000.0,0.00014876,2]
[392838385,1762029031494,-874.31115052,0.00014882,2]
[392838386,1762029031503,-2667.98207836,0.00014882,2]
[392838387,1762029031513,-874.3111505,0.00014884,2]
[392838388,1762029031522,-1425.0,0.00014884,2]
[392838389,1762029031531,-874.3111505,0.00014885,2]
[392838390,1762029031540,-874.3111505,0.00014887,2]
[392838391,1762029031549,-350.7896194,0.00014888,2]
[392838392,1762029031561,-874.3111505,0.00014888,2]
[392838393,1762029031570,-874.3111505,0.0001489,2]
[392838394,1762029031579,-150.0,0.0001489,2]
[392838395,1762029031588,-168.0,0.00014891,2]
[392838396,1762029031597,-1451.6,0.00014891,2]
[392838397,1762029031606,-500.0,0.00014891,2]
[392838398,1762029031615,-1932.98471237,0.00014891,2]
[392838399,1762029031624,-500.0,0.00014891,2]
[392838400,1762029031633,-500.0,0.00014891,2]
[392838401,1762029031642,-500.0,0.00014891,2]
[392838402,1762029031651,-500.0,0.00014891,2]
[392838403,1762029031660,-500.0,0.00014891,2]
[392838404,1762029031669,-500.0,0.00014891,2]
[392838405,1762029031678,-500.0,0.00014891,2]
[392838406,1762029031687,-500.0,0.00014891,2]
[392838407,1762029031696,-500.0,0.00014891,2]
[392838408,1762029031705,-500.0,0.00014891,2]
[392838410,1762029031714,-209.40437684,0.00014891,2]
[392838412,1762029031723,-250.0,0.00014891,2]
[392838414,1762029031734,-500.0,0.00014891,2]
[392838415,1762029031743,-250.0,0.00014891,2]
[392838417,1762029031752,-500.0,0.00014891,2]
[392838419,1762029031761,-250.0,0.00014891,2]
[392838420,1762029031770,-500.0,0.00014891,2]
[392838422,1762029031779,-250.0,0.00014891,2]
[392838423,1762029031788,-500.0,0.00014891,2]
[392838424,1762029031797,-250.0,0.00014891,2]
[392838425,1762029031806,-500.0,0.00014891,2]
[392838426,1762029031815,-250.0,0.00014891,2]
[392838428,1762029031824,-500.0,0.00014891,2]
[392838430,1762029031833,-250.0,0.00014891,2]
[392838431,1762029031842,-500.0,0.00014891,2]
[392838432,1762029031851,-250.0,0.00014891,2]
[392838433,1762029031860,-500.0,0.00014891,2]
[392838434,1762029031873,-250.0,0.00014891,2]
[392838435,1762029031882,-500.0,0.00014891,2]
[392838436,1762029031891,-496.47127164,0.00014891,2]
[392838437,1762029031900,-250.0,0.00014891,2]
[392838438,1762029031909,-250.0,0.00014891,2]
[392838439,1762029031918,-500.0,0.00014891,2]
[392838440,1762029031927,-250.0,0.00014891,2]
[392838441,1762029031936,-250.0,0.00014891,2]
[392838442,1762029031945,-500.0,0.00014891,2]
[392838443,1762029031954,-250.0,0.00014891,2]
[392838444,1762029031963,-250.0,0.00014891,2]
[392838445,1762029031972,-250.0,0.00014891,2]
[392838446,1762029031982,-250.0,0.00014891,2]
[392838447,1762029031991,-250.0,0.00014891,2]
[392838448,1762029031999,-620.0,0.00014891,2]
[392838449,1762029032010,-250.0,0.00014891,2]
[392838450,1762029032019,-303.68486206,0.00014891,2]
[392838451,1762029032028,-322.6107,0.00014891,2]
[392838452,1762029032037,-239.84119403,0.00014891,2]
[392838453,1762029032047,-874.3111505,0.00014891,2]
[392838454,1762029032056,-874.3111505,0.00014893,2]
[392838455,1762029032065,-463.16,0.00014894,2]
[392838456,1762029032074,-874.3111505,0.00014894,2]
[392838457,1762029032083,-2102.6314,0.00014896,2]
[392838458,1762029032092,-874.3111505,0.00014896,2]
[392838459,1762029032102,-155.33383012,0.00014896,2]
[392838460,1762029032111,-4422.65409782,0.00014896,2]
[392838461,1762029032119,-159.445454,0.00014896,2]
[392838462,1762029032129,-424.09,0.00014897,2]
[392838463,1762029032138,-1071.94596581,0.00014899,2]
[392838464,1762029032148,-1000.0,0.00014899,2]
[392838465,1762029032157,-500.0,0.00014899,2]
[392838466,1762029032167,-500.0,0.00014899,2]
[392838467,1762029032176,-500.0,0.00014899,2]
[392838468,1762029032187,-500.0,0.00014899,2]
[392838469,1762029032196,-500.0,0.00014899,2]
[392838470,1762029032204,-500.0,0.00014899,2]
[392838471,1762029032214,-500.0,0.00014899,2]
[392838472,1762029032223,-500.0,0.00014899,2]
[392838473,1762029032233,-500.0,0.00014899,2]
[392838474,1762029032242,-500.0,0.00014899,2]
[392838475,1762029032251,-500.0,0.00014899,2]
[392838476,1762029032261,-500.0,0.00014899,2]
[392838477,1762029032270,-500.0,0.00014899,2]
[392838478,1762029032280,-500.0,0.00014899,2]
[392838479,1762029032290,-500.0,0.00014899,2]
[392838480,1762029032299,-500.0,0.00014899,2]
[392838481,1762029032309,-500.0,0.00014899,2]
[392838482,1762029032318,-500.0,0.00014899,2]
[392838483,1762029032328,-500.0,0.00014899,2]
[392838484,1762029032337,-500.0,0.00014899,2]
[392838485,1762029032347,-500.0,0.00014899,2]
[392838486,1762029032356,-500.0,0.00014899,2]
[392838487,1762029032366,-500.0,0.00014899,2]
[392838488,1762029032376,-500.0,0.00014899,2]
[392838489,1762029032385,-500.0,0.00014899,2]
[392838490,1762029032395,-500.0,0.00014899,2]
[392838491,1762029032405,-500.0,0.00014899,2]
[392838492,1762029032414,-500.0,0.00014899,2]
[392838493,1762029032423,-500.0,0.00014899,2]
[392838494,1762029032433,-616.66797335,0.00014899,2]
[392838495,1762029032442,-8198.5454,0.000149,2]
[392838496,1762029032451,-36842.7906,0.000149,2]
[392838497,1762029032461,-1000.0,0.000149,2]
[392838498,1762029032470,-317.5062369,0.000149,2]
[392838499,1762029032479,-1000.0,0.000149,2]
[392838500,1762029032490,-1232.23545552,0.000149,2]
[392838501,1762029032499,-161.84797,0.000149,2]
[392838502,1762029032509,-1039.37453861,0.000149,2]
[392838503,1762029032518,-3852.894,0.00014901,2]
[392838504,1762029032527,-168.0,0.00014908,2]
[392838505,1762029032537,-1000.0,0.00014947,2]
[392838506,1762029032547,-680.38147136,0.00014957,2]
[392838507,1762029032556,-1314.0,0.00014957,2]
[392838508,1762029032566,-1594.0,0.00014957,2]
[392838509,1762029032575,-819.0,0.00014957,2]
[392838510,1762029032584,-1272.0,0.00014957,2]
[392838511,1762029032593,-1187.0,0.00014957,2]
[392838512,1762029032603,-905.0,0.00014957,2]
[392838513,1762029032612,-6652.0,0.00014957,2]
[392838514,1762029032622,-820.0,0.00014957,2]
[392838515,1762029032632,-1177.767,0.00014957,2]
[392838516,1762029032641,-2188.503,0.00014957,2]
[392838517,1762029032650,-161.84797,0.0001496,2]
[392838518,1762029032660,-1425.0,0.00014964,2]
[392838519,1762029032669,-1425.0,0.00014964,2]
[392838520,1762029032679,-500.0,0.00014973,2]
[392838521,1762029032689,-500.0,0.00014973,2]
[392838522,1762029032699,-500.0,0.00014973,2]
[392838523,1762029032709,-500.0,0.00014973,2]
[392838524,1762029032719,-500.0,0.00014973,2]
[392838525,1762029032728,-577.75360908,0.00014973,2]
[392838526,1762029032737,-500.0,0.00014973,2]
[392838527,1762029032747,-500.0,0.00014973,2]
[392838528,1762029032757,-500.0,0.00014973,2]
[392838529,1762029032766,-152.58559931,0.00014973,2]
[392838530,1762029032775,-500.0,0.00014973,2]
[392838531,1762029032784,-500.0,0.00014973,2]
[392838532,1762029032794,-500.0,0.00014973,2]
[392838533,1762029032803,-248.84675189,0.00014979,2]
[392838534,1762029032812,-500.0,0.00014979,2]
[392838535,1762029032821,-500.0,0.00014979,2]
[392838536,1762029032831,-231.61311037,0.00014979,2]
[392838537,1762029032841,-666.0,0.00014979,2]
[392838538,1762029032850,-25832.91788713,0.0001498,2]
[392838539,1762029032868,-22098.99706773,0.0001498,2]
[392838540,1762029032879,-40891.08821712,0.0001498,2]
[392838544,1762029037378,-174.28193039,0.00014882,2]
[392838545,1762029037387,-2667.98207835,0.00014884,2]
[392838546,1762029037401,-607.0,0.00014953,2]
[392838547,1762029037410,-3160101.47669673,0.0001498,2]
[392838548,1762029037433,-45462.60141248,0.0001498,2]
[392838549,1762029037445,-270.08027686,0.0001498,2]
[392838550,1762029037491,-7851.26138464,0.0001498,2]
[392838551,1762029037502,-2524.94000031,0.0001498,2]
[392838552,1762029037513,-1090.66059968,0.0001498,2]
[392838553,1762029037600,-11545.93224077,0.0001498,2]
[392838554,1762029037611,-259.13839387,0.0001498,2]
[392838557,1762029039435,-1081.32027567,0.0001498,2]
[392838558,1762029039447,-1719.3985112,0.0001498,2]
[392838559,1762029039489,-2229.64171834,0.0001498,2]
[392838560,1762029039604,-1551.9062429,0.0001498,2]
[392838561,1762029039616,-957.31465083,0.0001498,2]
[392838562,1762029039661,-687.00000082,0.0001498,2]
[392838563,1762029039673,-554616.10173315,0.0001498,2]
[392838564,1762029039682,-1000.0,0.00014982,2]
[392838565,1762029039692,-2200.0,0.00014986,2]
[392838566,1762029039702,-200.0,0.00014988,2]
[392838567,1762029039711,-150.0,0.00014988,2]
[392838568,1762029039721,-150.0,0.00014988,2]